fUSD/lending_fUSD_20250611
["ID","MTS","AMOUNT","RATE_DAILY","PERIOD"]
[365449444,1749678655198,-490.0,0.00019342,2]
[365449445,1749678655208,-490.0,0.00019342,2]
[365449446,1749678655218,-490.0,0.00019342,2]
[365449447,1749678655228,-490.0,0.00019342,2]
[365449448,1749678655238,-490.9,0.00019342,2]
[365449449,1749678655247,-490.0,0.00019342,2]
[365449450,1749678655257,-537.58764632,0.00019342,2]
[365449451,1749678655266,-663.88,0.00019342,2]
[365449452,1749678655276,-490.0,0.00019342,2]
[365449453,1749678655285,-490.0,0.00019342,2]
[365449454,1749678655295,-490.0,0.00019342,2]
[365449455,1749678655305,-490.0,0.00019342,2]
[365449456,1749678655314,-400.0,0.00019342,2]
[365449457,1749678655323,-490.0,0.00019342,2]
[365449458,1749678655333,-490.0,0.00019342,2]
[365449459,1749678655343,-490.0,0.00019342,2]
[365449460,1749678655352,-490.0,0.00019342,2]
[365449461,1749678655362,-490.0,0.00019342,2]
[365449462,1749678655371,-490.0,0.00019342,2]
[365449463,1749678655382,-554.35,0.00019342,2]
[365449464,1749678655392,-490.0,0.00019342,2]
[365449465,1749678655402,-490.0,0.00019342,2]
[365449466,1749678655411,-490.0,0.00019342,2]
[365449467,1749678655420,-490.0,0.00019342,2]
[365449468,1749678655431,-865.59,0.00019342,2]
[365449469,1749678655440,-1096.93695214,0.00019342,2]
[365449470,1749678655450,-490.0,0.00019342,2]
[365449471,1749678655463,-470.0,0.00019342,2]
[365449472,1749678655473,-440.0,0.00019342,2]
[365449473,1749678655482,-490.0,0.00019342,2]
[365449474,1749678655492,-549.17,0.00019342,2]
[365449475,1749678655503,-490.0,0.00019342,2]
[365449476,1749678655512,-490.0,0.00019342,2]
[365449477,1749678655522,-777.01,0.00019342,2]
[365449478,1749678655533,-490.0,0.00019342,2]
[365449479,1749678655543,-490.0,0.00019342,2]
[365449480,1749678655553,-490.0,0.00019342,2]
[365449481,1749678655562,-490.0,0.00019342,2]
[365449482,1749678655572,-490.0,0.00019342,2]
[365449483,1749678655582,-490.0,0.00019342,2]
[365449484,1749678655592,-448.38092803,0.00019342,2]
[365449485,1749678655602,-290.0,0.00019342,2]
[365449486,1749678655611,-490.0,0.00019342,2]
[365449487,1749678655621,-490.0,0.00019342,2]
[365449488,1749678655631,-490.0,0.00019342,2]
[365449489,1749678655641,-490.0,0.00019342,2]
[365449490,1749678655651,-490.0,0.00019342,2]
[365449491,1749678655660,-490.0,0.00019342,2]
[365449492,1749678655670,-490.0,0.00019342,2]
[365449493,1749678655679,-490.0,0.00019342,2]
[365449494,1749678655689,-490.0,0.00019342,2]
[365449495,1749678655699,-490.0,0.00019342,2]
[365449496,1749678655708,-460.0,0.00019342,2]
[365449497,1749678655718,-490.0,0.00019342,2]
[365449498,1749678655728,-490.0,0.00019342,2]
[365449499,1749678655738,-490.0,0.00019342,2]
[365449500,1749678655748,-490.0,0.00019342,2]
[365449501,1749678655758,-490.0,0.00019342,2]
[365449502,1749678655768,-490.0,0.00019342,2]
[365449503,1749678655778,-668.65,0.00019342,2]
[365449504,1749678655788,-414.77944032,0.00019342,2]
[365449505,1749678655797,-490.0,0.00019342,2]
[365449506,1749678655807,-373.74196941,0.00019342,2]
[365449507,1749678655816,-470.0,0.00019342,2]
[365449508,1749678655827,-490.0,0.00019342,2]
[365449509,1749678655836,-1196.83,0.00019342,2]
[365449510,1749678655846,-490.0,0.00019342,2]
[365449511,1749678655856,-250.0,0.00019342,2]
[365449512,1749678655866,-490.0,0.00019342,2]
[365449513,1749678655875,-490.0,0.00019342,2]
[365449514,1749678655885,-490.0,0.00019342,2]
[365449515,1749678655894,-737.98,0.00019342,2]
[365449516,1749678655904,-490.0,0.00019342,2]
[365449517,1749678655913,-490.0,0.00019342,2]
[365449518,1749678655923,-692.2,0.00019342,2]
[365449519,1749678655932,-490.0,0.00019342,2]
[365449520,1749678655941,-490.0,0.00019342,2]
[365449521,1749678655951,-490.0,0.00019342,2]
[365449522,1749678655960,-1428.51,0.00019342,2]
[365449523,1749678655970,-490.0,0.00019342,2]
[365449524,1749678655981,-490.0,0.00019342,2]
[365449525,1749678655990,-725.83,0.00019342,2]
[365449526,1749678656000,-490.0,0.00019342,2]
[365449527,1749678656009,-1172.69,0.00019342,2]
[365449528,1749678656020,-490.0,0.00019342,2]
[365449529,1749678656031,-244.3015148,0.00019342,2]
[365449530,1749678656040,-490.0,0.00019342,2]
[365449531,1749678656049,-490.0,0.00019342,2]
[365449532,1749678656059,-954.88,0.00019342,2]
[365449533,1749678656068,-490.0,0.00019342,2]
[365449534,1749678656077,-490.0,0.00019342,2]
[365449535,1749678656087,-1033.7,0.00019342,2]
[365449536,1749678656096,-610.84,0.00019342,2]
[365449537,1749678656105,-490.0,0.00019342,2]
[365449538,1749678656114,-1106.22,0.00019342,2]
[365449539,1749678656124,-490.0,0.00019342,2]
[365449540,1749678656134,-490.0,0.00019342,2]
[365449541,1749678656143,-490.0,0.00019342,2]
[365449542,1749678656152,-490.0,0.00019342,2]
[365449543,1749678656161,-492.37303239,0.00019342,2]
[365449544,1749678656170,-1395.16,0.00019342,2]
[365449545,1749678656179,-906.51,0.00019342,2]
[365449546,1749678656188,-810.65,0.00019342,2]
[365449547,1749678656198,-734.52,0.00019342,2]
[365449548,1749678656207,-490.0,0.00019342,2]
[365449549,1749678656216,-490.0,0.00019342,2]
[365449550,1749678656227,-8016.81,0.00019342,2]
[365449551,1749678656237,-1444.079842,0.00019342,2]
[365449552,1749678656250,-490.0,0.00019342,2]
[365449553,1749678656259,-410.0,0.00019342,2]
[365449554,1749678656268,-470.0,0.00019342,2]
[365449555,1749678656278,-490.0,0.00019342,2]
[365449556,1749678656287,-5669.84,0.00019342,2]
[365449557,1749678656297,-3267.52,0.00019342,2]
[365449558,1749678656307,-460.0,0.00019342,2]
[365449559,1749678656316,-490.0,0.00019342,2]
[365449560,1749678656326,-490.0,0.00019342,2]
[365449561,1749678656336,-490.0,0.00019342,2]
[365449562,1749678656345,-646.78,0.00019342,2]
[365449563,1749678656355,-480.0,0.00019342,2]
[365449564,1749678656364,-470.0,0.00019342,2]
[365449565,1749678656374,-490.0,0.00019342,2]
[365449566,1749678656383,-490.0,0.00019342,2]
[365449567,1749678656392,-490.0,0.00019342,2]
[365449568,1749678656402,-490.0,0.00019342,2]
[365449569,1749678656411,-1213.2,0.00019342,2]
[365449570,1749678656421,-470.0,0.00019342,2]
[365449571,1749678656431,-490.0,0.00019342,2]
[365449572,1749678656440,-490.0,0.00019342,2]
[365449573,1749678656450,-490.0,0.00019342,2]
[365449574,1749678656463,-2370.31,0.00019342,2]
[365449575,1749678656472,-490.0,0.00019342,2]
[365449576,1749678656482,-490.0,0.00019342,2]
[365449577,1749678656492,-470.0,0.00019342,2]
[365449578,1749678656503,-490.0,0.00019342,2]
[365449579,1749678656512,-727.13,0.00019342,2]
[365449580,1749678656521,-470.0,0.00019342,2]
[365449581,1749678656531,-508.98,0.00019342,2]
[365449582,1749678656542,-490.0,0.00019342,2]
[365449583,1749678656552,-490.0,0.00019342,2]
[365449584,1749678656562,-1084.2,0.00019342,2]
[365449585,1749678656571,-490.0,0.00019342,2]
[365449586,1749678656581,-594.02243927,0.00019342,2]
[365449587,1749678656590,-1064.49,0.00019342,2]
[365449588,1749678656599,-490.0,0.00019342,2]
[365449589,1749678656609,-490.0,0.00019342,2]
[365449590,1749678656618,-490.0,0.00019342,2]
[365449591,1749678656628,-1267.36,0.00019342,2]
[365449592,1749678656637,-480.0,0.00019342,2]
[365449593,1749678656647,-1127.66,0.00019342,2]
[365449594,1749678656657,-887.99,0.00019342,2]
[365449595,1749678656667,-1260.78,0.00019342,2]
[365449596,1749678656741,-470.0,0.00019342,2]
[365449597,1749678656751,-490.0,0.00019342,2]
[365449598,1749678656760,-2493.06,0.00019342,2]
[365449599,1749678656769,-490.0,0.00019342,2]
[365449600,1749678656779,-490.0,0.00019342,2]
[365449601,1749678656788,-1236.85,0.00019342,2]
[365449602,1749678656797,-490.0,0.00019342,2]
[365449603,1749678656807,-490.0,0.00019342,2]
[365449604,1749678656816,-470.0,0.00019342,2]
[365449605,1749678656825,-490.0,0.00019342,2]
[365449606,1749678656835,-490.0,0.00019342,2]
[365449607,1749678656844,-490.0,0.00019342,2]
[365449608,1749678656854,-490.0,0.00019342,2]
[365449609,1749678656863,-490.0,0.00019342,2]
[365449610,1749678656873,-490.0,0.00019342,2]
[365449611,1749678656882,-490.0,0.00019342,2]
[365449612,1749678656891,-490.0,0.00019342,2]
[365449613,1749678656901,-490.0,0.00019342,2]
[365449614,1749678656910,-490.0,0.00019342,2]
[365449615,1749678656919,-470.0,0.00019342,2]
[365449616,1749678656928,-490.0,0.00019342,2]
[365449617,1749678656937,-2109.3,0.00019342,2]
[365449618,1749678656947,-490.0,0.00019342,2]
[365449619,1749678656956,-286.46328971,0.00019342,2]
[365449620,1749678656966,-490.0,0.00019342,2]
[365449621,1749678656975,-490.0,0.00019342,2]
[365449622,1749678656984,-490.0,0.00019342,2]
[365449623,1749678656994,-3918.5,0.00019342,2]
[365449624,1749678657003,-490.0,0.00019342,2]
[365449625,1749678657012,-490.0,0.00019342,2]
[365449626,1749678657021,-490.0,0.00019342,2]
[365449627,1749678657031,-490.0,0.00019342,2]
[365449628,1749678657040,-1574.82,0.00019342,2]
[365449629,1749678657050,-520.0,0.00019342,2]
[365449630,1749678657059,-410.0,0.00019342,2]
[365449631,1749678657068,-1073.47,0.00019342,2]
[365449632,1749678657078,-490.0,0.00019342,2]
[365449633,1749678657087,-602.09,0.00019342,2]
[365449634,1749678657096,-490.0,0.00019342,2]
[365449635,1749678657105,-361.71148165,0.00019342,2]
[365449636,1749678657114,-815.67,0.00019342,2]
[365449637,1749678657124,-470.0,0.00019342,2]
[365449638,1749678657134,-490.0,0.00019342,2]
[365449639,1749678657143,-9371.14,0.00019342,2]
[365449640,1749678657152,-490.0,0.00019342,2]
[365449641,1749678657162,-490.0,0.00019342,2]
[365449642,1749678657171,-858.66,0.00019342,2]
[365449643,1749678657180,-842.96,0.00019342,2]
[365449644,1749678657190,-490.0,0.00019342,2]
[365449645,1749678657199,-490.0,0.00019342,2]
[365449646,1749678657208,-490.0,0.00019342,2]
[365449647,1749678657218,-490.0,0.00019342,2]
[365449648,1749678657228,-900.57,0.00019342,2]
[365449649,1749678657237,-490.0,0.00019342,2]
[365449650,1749678657246,-871.33,0.00019342,2]
[365449651,1749678657255,-490.0,0.00019342,2]
[365449652,1749678657264,-490.0,0.00019342,2]
[365449653,1749678657274,-490.0,0.00019342,2]
[365449654,1749678657283,-490.0,0.00019342,2]
[365449655,1749678657292,-770.56,0.00019342,2]
[365449656,1749678657302,-490.0,0.00019342,2]
[365449657,1749678657312,-1120.3,0.00019342,2]
[365449658,1749678657321,-470.0,0.00019342,2]
[365449659,1749678657330,-1607.82,0.00019342,2]
[365449660,1749678657340,-490.0,0.00019342,2]
[365449661,1749678657349,-490.0,0.00019342,2]
[365449662,1749678657359,-490.0,0.00019342,2]
[365449663,1749678657368,-1253.5,0.00019342,2]
[365449664,1749678657377,-490.0,0.00019342,2]
[365449665,1749678657386,-490.0,0.00019342,2]
[365449666,1749678657395,-490.0,0.00019342,2]
[365449667,1749678657405,-490.0,0.00019342,2]
[365449668,1749678657414,-490.0,0.00019342,2]
[365449669,1749678657425,-490.0,0.00019342,2]
[365449670,1749678657436,-490.0,0.00019342,2]
[365449671,1749678657444,-507.81,0.00019342,2]
[365449672,1749678657453,-490.0,0.00019342,2]
[365449673,1749678657466,-1465.84,0.00019342,2]
[365449674,1749678657476,-490.0,0.00019342,2]
[365449675,1749678657485,-490.0,0.00019342,2]
[365449676,1749678657494,-490.0,0.00019342,2]
[365449677,1749678657503,-367.87938123,0.00019342,2]
[365449678,1749678657513,-1087.66,0.00019342,2]
[365449679,1749678657522,-490.0,0.00019342,2]
[365449680,1749678657532,-490.0,0.00019342,2]
[365449681,1749678657540,-537.25,0.00019342,2]
[365449682,1749678657550,-470.0,0.00019342,2]
[365449683,1749678657559,-490.0,0.00019342,2]
[365449684,1749678657568,-490.0,0.00019342,2]
[365449685,1749678657578,-419.13693919,0.00019342,2]
[365449686,1749678657587,-490.0,0.00019342,2]
[365449687,1749678657596,-470.0,0.00019342,2]
[365449688,1749678657605,-490.0,0.00019342,2]
[365449689,1749678657614,-490.0,0.00019342,2]
[365449690,1749678657623,-490.0,0.00019342,2]
[365449691,1749678657632,-839.46,0.00019342,2]
[365449692,1749678657642,-490.0,0.00019342,2]
[365449693,1749678657651,-490.0,0.00019342,2]
[365449694,1749678657660,-490.0,0.00019342,2]
[365449695,1749678657669,-845.5,0.00019342,2]
[365449696,1749678657679,-490.0,0.00019342,2]
[365449697,1749678657688,-490.0,0.00019342,2]
[365449698,1749678657697,-490.0,0.00019342,2]
[365449699,1749678657706,-1908.27,0.00019342,2]
[365449700,1749678657716,-490.0,0.00019342,2]
[365449701,1749678657726,-15939.03,0.00019342,2]
[365449702,1749678657735,-490.0,0.00019342,2]
[365449703,1749678657744,-4533.32,0.00019342,2]
[365449704,1749678657754,-614.06175996,0.00019342,2]
[365449705,1749678657763,-490.0,0.00019342,2]
[365449706,1749678657772,-490.0,0.00019342,2]
[365449707,1749678657781,-1681.05,0.00019342,2]
[365449708,1749678657791,-386.21188694,0.00019342,2]
[365449709,1749678657800,-490.0,0.00019342,2]
[365449710,1749678657809,-490.0,0.00019342,2]
[365449711,1749678657818,-490.0,0.00019342,2]
[365449712,1749678657827,-490.0,0.00019342,2]
[365449713,1749678657836,-490.0,0.00019342,2]
[365449714,1749678657845,-490.0,0.00019342,2]
[365449715,1749678657854,-490.0,0.00019342,2]
[365449716,1749678657863,-470.0,0.00019342,2]
[365449717,1749678657872,-2248.91,0.00019342,2]
[365449718,1749678657880,-490.0,0.00019342,2]
[365449719,1749678657889,-821.62,0.00019342,2]
[365449720,1749678657898,-490.0,0.00019342,2]
[365449721,1749678657907,-1688.58,0.00019342,2]
[365449722,1749678657916,-490.0,0.00019342,2]
[365449723,1749678657925,-490.0,0.00019342,2]
[365449724,1749678657933,-490.0,0.00019342,2]
[365449725,1749678657942,-490.0,0.00019342,2]
[365449726,1749678657951,-3276.99,0.00019342,2]
[365449727,1749678657959,-490.0,0.00019342,2]
[365449728,1749678657968,-741.03,0.00019342,2]
[365449729,1749678657977,-2634.95,0.00019342,2]
[365449730,1749678657986,-490.0,0.00019342,2]
[365449731,1749678657995,-1544.13,0.00019342,2]
[365449732,1749678658003,-490.0,0.00019342,2]
[365449733,1749678658012,-490.0,0.00019342,2]
[365449734,1749678658022,-736.5,0.00019342,2]
[365449735,1749678658031,-490.0,0.00019342,2]
[365449736,1749678658040,-490.0,0.00019342,2]
[365449737,1749678658048,-490.0,0.00019342,2]
[365449738,1749678658057,-490.0,0.00019342,2]
[365449739,1749678658067,-490.0,0.00019342,2]
[365449740,1749678658076,-1207.69,0.00019342,2]
[365449741,1749678658085,-1129.66,0.00019342,2]
[365449742,1749678658094,-490.0,0.00019342,2]
[365449743,1749678658103,-490.0,0.00019342,2]
[365449744,1749678658112,-490.0,0.00019342,2]
[365449745,1749678658121,-490.0,0.00019342,2]
[365449746,1749678658130,-490.0,0.00019342,2]
[365449747,1749678658138,-1000.0,0.00019342,2]
[365449748,1749678658147,-490.0,0.00019342,2]
[365449749,1749678658156,-490.0,0.00019342,2]
[365449750,1749678658164,-490.0,0.00019342,2]
[365449751,1749678658173,-641.07,0.00019342,2]
[365449752,1749678658183,-470.0,0.00019342,2]
[365449753,1749678658191,-490.0,0.00019342,2]
[365449754,1749678658200,-3317.38,0.00019342,2]
[365449755,1749678658209,-490.0,0.00019342,2]
[365449756,1749678658217,-470.0,0.00019342,2]
[365449757,1749678658228,-490.0,0.00019342,2]
[365449758,1749678658236,-490.0,0.00019342,2]
[365449759,1749678658246,-761.57,0.00019342,2]
[365449760,1749678658255,-490.0,0.00019342,2]
[365449761,1749678658263,-1688.49,0.00019342,2]
[365449762,1749678658272,-345.74452495,0.00019342,2]
[365449763,1749678658281,-1894.66,0.00019342,2]
[365449764,1749678658290,-680.84,0.00019342,2]
[365449765,1749678658299,-1120.96,0.00019342,2]
[365449766,1749678658307,-490.0,0.00019342,2]
[365449767,1749678658316,-1869.14,0.00019342,2]
[365449768,1749678658325,-490.0,0.00019342,2]
[365449769,1749678658334,-490.0,0.00019342,2]
[365449770,1749678658343,-490.0,0.00019342,2]
[365449771,1749678658352,-490.0,0.00019342,2]
[365449772,1749678658361,-869.87,0.00019342,2]
[365449773,1749678658370,-1664.43,0.00019342,2]
[365449774,1749678658379,-490.0,0.00019342,2]
[365449775,1749678658388,-3867.72,0.00019342,2]
[365449776,1749678658396,-490.0,0.00019342,2]
[365449777,1749678658405,-490.0,0.00019342,2]
[365449778,1749678658414,-490.0,0.00019342,2]
[365449779,1749678658423,-490.0,0.00019342,2]
[365449780,1749678658432,-490.0,0.00019342,2]
[365449781,1749678658442,-3076.62,0.00019342,2]
[365449782,1749678658451,-490.0,0.00019342,2]
[365449783,1749678658462,-490.0,0.00019342,2]
[365449784,1749678658471,-2330.84,0.00019342,2]
[365449785,1749678658480,-490.0,0.00019342,2]
[365449786,1749678658489,-490.0,0.00019342,2]
[365449787,1749678658498,-490.0,0.00019342,2]
[365449788,1749678658507,-490.0,0.00019342,2]
[365449789,1749678658516,-3718.72,0.00019342,2]
[365449790,1749678658526,-490.0,0.00019342,2]
[365449791,1749678658535,-490.0,0.00019342,2]
[365449792,1749678658545,-490.0,0.00019342,2]
[365449793,1749678658554,-490.0,0.00019342,2]
[365449794,1749678658564,-490.0,0.00019342,2]
[365449795,1749678658574,-490.0,0.00019342,2]
[365449796,1749678658583,-490.0,0.00019342,2]
[365449797,1749678658593,-490.0,0.00019342,2]
[365449798,1749678658603,-556.11,0.00019342,2]
[365449799,1749678658613,-728.76,0.00019342,2]
[365449800,1749678658622,-986.92,0.00019342,2]
[365449801,1749678658632,-735.23,0.00019342,2]
[365449802,1749678658641,-490.0,0.00019342,2]
[365449803,1749678658651,-704.54,0.00019342,2]
[365449804,1749678658660,-7050.98,0.00019342,2]
[365449805,1749678658670,-1358.4,0.00019342,2]
[365449806,1749678658679,-4328.28,0.00019342,2]
[365449807,1749678658689,-490.0,0.00019342,2]
[365449808,1749678658698,-490.0,0.00019342,2]
[365449809,1749678658708,-490.0,0.00019342,2]
[365449810,1749678658717,-490.0,0.00019342,2]
[365449811,1749678658727,-1622.083012,0.00019342,2]
[365449812,1749678658737,-561.87,0.00019342,2]
[365449813,1749678658748,-490.0,0.00019342,2]
[365449814,1749678658765,-490.0,0.00019342,2]
[365449815,1749678658775,-3555.95,0.00019342,2]
[365449816,1749678658784,-490.0,0.00019342,2]
[365449817,1749678658794,-490.0,0.00019342,2]
[365449818,1749678658804,-490.0,0.00019342,2]
[365449819,1749678658813,-742.57,0.00019342,2]
[365449820,1749678658823,-490.0,0.00019342,2]
[365449821,1749678658832,-490.0,0.00019342,2]
[365449822,1749678658842,-490.0,0.00019342,2]
[365449823,1749678658851,-2901.27,0.00019342,2]
[365449824,1749678658860,-490.0,0.00019342,2]
[365449825,1749678658869,-588.08,0.00019342,2]
[365449826,1749678658879,-490.0,0.00019342,2]
[365449827,1749678658888,-490.0,0.00019342,2]
[365449828,1749678658897,-1000.0,0.00019342,2]
[365449829,1749678658906,-1411.22,0.00019342,2]
[365449830,1749678658916,-3058.86184255,0.00019351,2]
[365449831,1749678658925,-2054.91976624,0.00019352,2]
[365449832,1749678658934,-528.96834258,0.00019366,2]
[365449833,1749678658943,-1249.85,0.00019371,2]
[365449834,1749678658953,-594.0089157,0.00019373,2]
[365449835,1749678658962,-500.0,0.00019373,2]
[365449836,1749678658971,-500.0,0.00019373,2]
[365449837,1749678658982,-500.0,0.00019373,2]
[365449838,1749678658991,-500.0,0.00019373,2]
[365449839,1749678659001,-627.38809791,0.00019373,2]
[365449840,1749678659010,-3200.0,0.000194,7]
[365449841,1749678659019,-221.93189134,0.000194,2]
[365449842,1749678659029,-15312.75,0.000194,2]
[365449843,1749678659038,-528.96834258,0.00019415,2]
[365449844,1749678659047,-3058.86184255,0.00019443,2]
[365449845,1749678659057,-166.21,0.00019453,2]
[365449846,1749678659066,-528.96834258,0.00019463,2]
[365449847,1749678659075,-204.0,0.00019496,3]
[365449848,1749678659084,-600.0,0.000195,7]
[365449849,1749678659094,-151.0,0.00019501,2]
[365449850,1749678659103,-151.0,0.00019501,2]
[365449851,1749678659112,-500.0,0.00019505,2]
[365449852,1749678659122,-150.0,0.00019505,2]
[365449853,1749678659131,-500.0,0.00019505,2]
[365449854,1749678659140,-500.0,0.00019505,2]
[365449855,1749678659149,-332.27,0.00019506,2]
[365449856,1749678659159,-393.38402046,0.00019506,2]
[365449857,1749678659169,-451.00411298,0.00019506,2]
[365449858,1749678659178,-510.82,0.00019506,2]
[365449859,1749678659188,-401.15568339,0.00019506,2]
[365449860,1749678659197,-490.0,0.00019506,2]
[365449861,1749678659206,-490.0,0.00019506,2]
[365449862,1749678659216,-480.0,0.00019506,2]
[365449863,1749678659225,-488.24,0.00019506,2]
[365449864,1749678659235,-509.1,0.00019506,2]
[365449865,1749678659244,-490.0,0.00019506,2]
[365449866,1749678659254,-406.27,0.00019506,2]
[365449867,1749678659263,-490.0,0.00019506,2]
[365449868,1749678659273,-470.0,0.00019506,2]
[365449869,1749678659283,-490.0,0.00019506,2]
[365449870,1749678659292,-460.0,0.00019506,2]
[365449871,1749678659301,-490.0,0.00019506,2]
[365449872,1749678659311,-441.02953792,0.00019506,2]
[365449873,1749678659320,-600.44160846,0.00019506,2]
[365449874,1749678659330,-494.81,0.00019506,2]
[365449875,1749678659339,-468.01885162,0.00019506,2]
[365449876,1749678659348,-269.07046389,0.00019506,2]
[365449877,1749678659358,-490.0,0.00019506,2]
[365449878,1749678659367,-490.0,0.00019506,2]
[365449879,1749678659378,-470.0,0.00019506,2]
[365449880,1749678659387,-490.0,0.00019506,2]
[365449881,1749678659396,-460.0,0.00019506,2]
[365449882,1749678659405,-460.0,0.00019506,2]
[365449883,1749678659415,-510.19,0.00019506,2]
[365449884,1749678659424,-490.0,0.00019506,2]
[365449885,1749678659434,-480.0,0.00019506,2]
[365449886,1749678659444,-490.0,0.00019506,2]
[365449887,1749678659453,-490.0,0.00019506,2]
[365449888,1749678659466,-460.61122675,0.00019506,2]
[365449889,1749678659475,-480.0,0.00019506,2]
[365449890,1749678659485,-490.0,0.00019506,2]
[365449891,1749678659494,-480.0,0.00019506,2]
[365449892,1749678659504,-490.0,0.00019506,2]
[365449893,1749678659513,-580.82321288,0.00019506,2]
[365449894,1749678659522,-490.0,0.00019506,2]
[365449895,1749678659532,-490.0,0.00019506,2]
[365449896,1749678659542,-594.96,0.00019506,2]
[365449897,1749678659552,-490.0,0.00019506,2]
[365449898,1749678659562,-490.0,0.00019506,2]
[365449899,1749678659572,-490.0,0.00019506,2]
[365449900,1749678659581,-609.34,0.00019506,2]
[365449901,1749678659591,-490.0,0.00019506,2]
[365449902,1749678659600,-470.0,0.00019506,2]
[365449903,1749678659610,-470.0,0.00019506,2]
[365449904,1749678659619,-490.0,0.00019506,2]
[365449905,1749678659628,-490.0,0.00019506,2]
[365449906,1749678659638,-490.0,0.00019506,2]
[365449907,1749678659647,-490.0,0.00019506,2]
[365449908,1749678659657,-435.29011439,0.00019506,2]
[365449909,1749678659666,-688.74,0.00019506,2]
[365449910,1749678659676,-470.0,0.00019506,2]
[365449911,1749678659686,-470.0,0.00019506,2]
[365449912,1749678659695,-490.0,0.00019506,2]
[365449913,1749678659705,-364.13162532,0.00019506,2]
[365449914,1749678659715,-490.0,0.00019506,2]
[365449915,1749678659724,-470.0,0.00019506,2]
[365449916,1749678659735,-490.0,0.00019506,2]
[365449917,1749678659745,-539.34,0.00019506,2]
[365449918,1749678659754,-613.51,0.00019506,2]
[365449919,1749678659764,-490.0,0.00019506,2]
[365449920,1749678659774,-490.0,0.00019506,2]
[365449921,1749678659783,-490.0,0.00019506,2]
[365449922,1749678659793,-450.0,0.00019506,2]
[365449923,1749678659802,-490.0,0.00019506,2]
[365449924,1749678659811,-490.0,0.00019506,2]
[365449925,1749678659821,-490.0,0.00019506,2]
[365449926,1749678659830,-490.0,0.00019506,2]
[365449927,1749678659840,-460.0,0.00019506,2]
[365449928,1749678659849,-490.0,0.00019506,2]
[365449929,1749678659858,-490.0,0.00019506,2]
[365449930,1749678659868,-470.0,0.00019506,2]
[365449931,1749678659877,-490.0,0.00019506,2]
[365449932,1749678659887,-490.0,0.00019506,2]
[365449933,1749678659897,-490.0,0.00019506,2]
[365449934,1749678659906,-490.0,0.00019506,2]
[365449935,1749678659915,-494.38,0.00019506,2]
[365449936,1749678659925,-490.0,0.00019506,2]
[365449937,1749678659935,-245.44091203,0.00019506,2]
[365449938,1749678659944,-490.0,0.00019506,2]
[365449939,1749678659954,-490.0,0.00019506,2]
[365449940,1749678659963,-755.28,0.00019506,2]
[365449941,1749678659973,-490.0,0.00019506,2]
[365449942,1749678659984,-600.6210191,0.00019506,2]
[365449943,1749678659994,-590.35620363,0.00019506,2]